Cogmind - Beta 14 --- EXPLORER MODE // 2024.08.26 @ 12:01:19 Player: Genju Result: Self-destructed Performance ------------- Evolutions (3) 1500 Regions Visited (4) 800 Robots Destroyed (96) 480 Value Destroyed (2768) 2768 Prototype IDs (0) 0 Alien Tech Used (0) 0 Bonus (0) 0 TOTAL SCORE: 5548 Bonus ------- None Cogmind --------- Core Integrity 693/700 Matter 295/300 Energy 65/275 System Corruption 0% Temperature Cool (25) Movement Walking (115) Location -7/Factory Parts ------- > --- POWER (2) -------- Deuterium Engine > --- PROPULSION (4) --- Carbon-fiber Leg Carbon-fiber Leg Titanium Leg VSS Leg > --- UTILITY (6) ------ Advanced Visual Processing Unit Sensor Array Signal Interpreter Transmission Jammer Hacking Suite Hacking Suite > --- WEAPON (2) ------- EM Pulse Cannon Improved EM Pulse Cannon > --- INVENTORY (5) ---- Armor Integrity Analyzer Hacking Suite Heavy EM Pulse Gun EM Pulse Cannon Ion Cannon Peak State ------------ > --- POWER ------------ Deuterium Engine Light Deuterium Engine > --- PROPULSION ------- Carbon-fiber Leg Carbon-fiber Leg Titanium Leg VSS Leg > --- UTILITY ---------- Advanced Visual Processing Unit Sensor Array Signal Interpreter Transmission Jammer Hacking Suite Hacking Suite > --- WEAPON ----------- EM Pulse Cannon Improved EM Pulse Cannon > --- INVENTORY -------- Hacking Suite Heavy EM Pulse Gun EM Pulse Cannon Ion Cannon [Rating: 41] Favorites ----------- Power Light Deuterium Engine Engine Light Deuterium Engine Power Core Light Nuclear Core Propulsion Aluminum Leg Leg Aluminum Leg Utility Hacking Suite Device Sensor Array Processor Signal Interpreter Hackware Hacking Suite Weapon EM Pulse Cannon Energy Cannon EM Pulse Cannon Ballistic Gun Assault Rifle Build | -11 -10 -9 -8 -7 ------- Run | Yrd Mat Mat Mat Fac Slots Evolved 7 | . 1 2 2 2 Power 1 | . 1 . . . Propulsion 2 | . . . 2 . Utility 4 | . . 2 . 2 Weapon . | . . . . . Parts Attached 40 | 7 3 16 11 3 Power 8 | 1 1 4 2 . Engine 7 | 1 1 3 2 . Core 1 | . . 1 . . Reactor . | . . . . . Propulsion 14 | 2 1 4 7 . Treads . | . . . . . Leg 14 | 2 1 4 7 . Wheel . | . . . . . Hover . | . . . . . Flight . | . . . . . Utility 8 | 2 . 4 . 2 Device 3 | 1 . 1 . 1 Storage . | . . . . . Processor 3 | 1 . 1 . 1 Hackware 2 | . . 2 . . Protection . | . . . . . Artifact . | . . . . . Weapon 10 | 2 1 4 2 1 Energy Gun . | . . . . . Energy Cannon 6 | . . 3 2 1 Ballistic Gun 4 | 2 1 1 . . Ballistic Cannon . | . . . . . Launcher . | . . . . . Special Weapon . | . . . . . Impact Weapon . | . . . . . Slashing Weapon . | . . . . . Piercing Weapon . | . . . . . Special Melee Weapon . | . . . . . Unidentified Prototypes . | . . . . . Parts Lost 2 | . . . 1 1 Power 1 | . . . . 1 Propulsion . | . . . . . Utility . | . . . . . Weapon 1 | . . . 1 . Highest Loss Streak 1 | . . . 1 1 To Critical Strikes . | . . . . . Average Slot Usage (%) 99 | . 99 99 99 99 Engine 15 | . 25 12 15 13 Core 3 | . . 7 . . Leg 25 | . 24 19 32 28 Device 10 | . 12 10 8 14 Processor 11 | . 12 12 8 14 Hackware 13 | . . 16 16 14 Energy Cannon 11 | . . 12 15 14 Ballistic Gun 7 | . 25 7 . . Peak Build Rating 41 | 7 8 24 33 41 Average Rating 23 | 5 7 19 32 39 On Entrance 14 | . 7 8 24 33 Naked Turns . | . . . . . Heaviest Build 29 | 10 15 25 27 29 Greatest Support 59 | 20 20 23 59 59 Greatest Overweight (x) 1 | . 1 1 . . Average Overweight (x) . | . . . . . Largest Inventory Capacity 5 | 5 5 5 5 5 Average Capacity 5 | 5 5 5 5 5 Most Carried 5 | 4 5 5 5 5 Average Carried 4 | 2 4 4 4 3 Final Capacity 5 | 5 5 5 5 5 Final Carried 5 | 4 5 5 5 5 Class Distribution -------------------- 90% | Hacker-Mutant 9% | Hacker-Skirmisher Dominant Class ---------------- Hacker-Mutant | -10/Materials Hacker-Mutant | -9/Materials Hacker-Mutant | -8/Materials Hacker-Skirmisher | -7/Factory Resources | -11 -10 -9 -8 -7 ----------- Run | Yrd Mat Mat Mat Fac Matter Collected 1226 | 233 199 556 208 30 Remotely . | . . . . . Salvage Created 3529 | . 117 1564 1656 192 Parts 212 | . 23 95 85 9 Haulers Intercepted . | . . . . . Recyclers Shooed 4 | . . 4 . . Parts Field Recycled . | . . . . . Retrieved Matter . | . . . . . Parts Self-Destructed . | . . . . . Prevented . | . . . . . Kills | -11 -10 -9 -8 -7 ------- Run | Yrd Mat Mat Mat Fac Combat Hostiles Destroyed 66 | . 6 30 28 2 Guns 24 | . 6 18 . . Cannons 26 | . . 6 18 2 AOE 7 | . . 3 4 . Classes Destroyed 12 | . 2 5 5 . Worker 2 | . . 2 . . Builder 1 | . . . 1 . Recycler 4 | . . 3 1 . Mechanic 1 | . . . 1 . Operator 6 | . . 4 2 . Watcher 16 | . 3 5 5 3 Swarmer 22 | . 6 10 5 1 Grunt 20 | . . 11 9 . Brawler 1 | . . . 1 . Duelist 1 | . . . 1 . Sentry 20 | . . 9 10 1 Hunter 2 | . . . 2 . Best Kill Streak 10 | . 2 10 6 1 Combat Bots Only 4 | . 2 4 4 1 Max Kills in Single Turn 2 | . 1 2 2 1 Gunslinging 1 | . . 1 . . Exploded 1 | . . 1 1 . Melee . | . . . . . Uniques/NPCs Destroyed . | . . . . . Combat | -11 -10 -9 -8 -7 -------- Run | Yrd Mat Mat Mat Fac Hostile Shots Fired 266 | . 28 114 85 39 Missed 85 | . 7 30 31 17 Damage Taken 1344 | . 98 615 473 158 Core 167 | . 14 108 38 7 Absorbed by Shields . | . . . . . Ignored by Resistances 863 | . 71 394 292 106 Regen/Repaired (Parts) 138 | . . 81 57 . Core Remaining (%) 90 | 100 94 73 93 . Volleys Fired 186 | . 22 93 61 10 Largest 2 | . 2 2 2 2 Hottest 132 | . 40 126 126 132 Shots Fired 370 | . 44 186 120 20 Gun 176 | . 44 132 . . Cannon 194 | . . 54 120 20 Launcher . | . . . . . Special . | . . . . . Kinetic 176 | . 44 132 . . Thermal . | . . . . . Explosive . | . . . . . Electromagnetic 194 | . . 54 120 20 Robot Hit Streak 38 | . 8 20 38 7 Robot Miss Streak 3 | . 3 3 2 1 Penetration Max . | . . . . . Secondary Targets 6 | . . 6 . . Max Gunslinging Chain 1 | . . 1 . . Shots Hit Robots 285 | . 27 142 99 17 Core Hits 121 | . 11 62 39 9 Critical Kills . | . . . . . Critical Parts Destroyed . | . . . . . Critical Strikes 2 | . . 1 . 1 Corrupt 2 | . . 1 . 1 Melee Attacks . | . . . . . Impact . | . . . . . Slashing . | . . . . . Piercing . | . . . . . Sneak Attacks . | . . . . . Combat Hostiles . | . . . . . Follow-up Attacks . | . . . . . Damage Inflicted 6283 | . 349 2382 2942 610 Guns 1764 | . 349 1415 . . Cannons 3859 | . . 810 2569 480 Explosions 647 | . . 144 373 130 Melee . | . . . . . Ramming 13 | . . 13 . . Kinetic 1764 | . 349 1415 . . Thermal 647 | . . 144 373 130 Explosive . | . . . . . Electromagnetic 3859 | . . 810 2569 480 Impact . | . . . . . Slashing . | . . . . . Piercing . | . . . . . Highest Corruption . | . . . . . Average Corruption . | . . . . . Corruption Purged . | . . . . . Corruption Blocked . | . . . . . Overload Shots . | . . . . . Overflow Damage 137 | . . 8 67 62 Projectiles 133 | . . 4 67 62 Explosions 4 | . . 4 . . Melee . | . . . . . Knockbacks . | . . . . . Impact . | . . . . . Kinetic . | . . . . . Secondary . | . . . . . Self-Inflicted Damage 46 | . . 46 . . Shots 1 | . . 1 . . Rammed . | . . . . . Targets Rammed 1 | . . 1 . . Kicked 1 | . . 1 . . Crushed . | . . . . . Highest Temperature 499 | . . 252 499 189 Average Temperature 115 | . . 81 147 61 Received Heat Transfer 702 | . . 357 270 75 Effects 11 | . . . 11 . Shutdowns 6 | . . . 6 . Energy Bleed 2 | . . . 2 . Interference 1 | . . . 1 . Matter Decay 2 | . . . 2 . Siege Activations . | . . . . . Robots Corrupted 10 | . . 3 7 . Combat Hostiles 9 | . . 3 6 . Parts Fried 43 | . . 13 28 2 Impact Corruptions . | . . . . . Robots Melted . | . . . . . Combat Hostiles . | . . . . . Parts Melted 1 | . . . 1 . Heat Transferred 750 | . . 150 450 150 Parts Sabotaged . | . . . . . Parts Stolen . | . . . . . Parts Stripped . | . . . . . Power Chain Reactions 11 | . . 3 6 2 Alert | -11 -10 -9 -8 -7 ------- Run | Yrd Mat Mat Mat Fac Peak Influence 328 | . 202 309 328 215 Initial 14 | . . . 14 14 Average 76 | . 52 71 89 122 Maximum Alert Level 1 | . 1 1 1 1 Low Security (%) 91 | 100 99 90 89 97 Level 1 8 | . . 9 10 2 Level 2 . | . . . . . Level 3 . | . . . . . Level 4 . | . . . . . Level 5 . | . . . . . High Security . | . . . . . Max Security . | . . . . . Squads Dispatched 6 | . . 4 2 . Investigation 3 | . . 1 2 . Extermination . | . . . . . Reinforcement 3 | . . 3 . . Assault . | . . . . . Garrison . | . . . . . Intercept . | . . . . . Searches Triggered . | . . . . . Construction Impeded . | . . . . . Haulers Reinforced . | . . . . . Active Scanning Responses . | . . . . . Cargo Convoy Interrupts . | . . . . . Stealth | -11 -10 -9 -8 -7 --------- Run | Yrd Mat Mat Mat Fac Distress Signals 3 | . . 2 1 . Communications Jammed . | . . . . . Distress Signals . | . . . . . Times Spotted 95 | . 11 39 37 8 Peak Tracking Total 5 | . 2 5 4 3 Tactical Retreats . | . . . . . Traps | -11 -10 -9 -8 -7 ------- Run | Yrd Mat Mat Mat Fac Traps Triggered 6 | . 1 2 2 1 Indirectly . | . . . . . Trap Hack Attempts . | . . . . . Triggered . | . . . . . Disarmed . | . . . . . Reprogrammed . | . . . . . Reused . | . . . . . Traps Extracted . | . . . . . Installed . | . . . . . Triggered . | . . . . . Machines | -11 -10 -9 -8 -7 ---------- Run | Yrd Mat Mat Mat Fac Machines Disabled 13 | . . 7 2 4 Max in Single Turn 4 | . . 2 1 4 Machines Repaired . | . . . . . Machines Dismantled . | . . . . . Machines Sabotaged . | . . . . . Overloaded Fab Kills . | . . . . . Hacking | -11 -10 -9 -8 -7 --------- Run | Yrd Mat Mat Mat Fac Machines Accessed 38 | . 10 11 15 2 Terminals 24 | . 8 6 9 1 Fabricators . | . . . . . Repair Stations 2 | . . 1 1 . Recycling Units 6 | . 2 2 2 . Scanalyzers 4 | . . 2 2 . Garrison Access 2 | . . . 1 1 Total Hacks 127 | . 39 44 40 4 Successful 101 | . 28 37 34 2 Failed 26 | . 11 7 6 2 Catastrophic 2 | . 2 . . . Database Lockouts . | . . . . . Manual 96 | . 38 23 31 4 Terminals 92 | . 35 29 25 3 Fabricators . | . . . . . Repair Stations 4 | . . 2 2 . Recycling Units 13 | . 4 5 4 . Scanalyzers 16 | . . 8 8 . Garrison Access 2 | . . . 1 1 Terminal Hacks 44 | . 16 18 10 . Record 1 | . . 1 . . Part Schematic 27 | . 15 7 5 . Robot Analysis 3 | . . 3 . . Level Access Points 1 | . . 1 . . Alert Level 2 | . . 1 1 . Unreport Threat 6 | . . 2 4 . Recall Investigation 2 | . . 2 . . Zone Layout 2 | . 1 1 . . Fabricator Hacks . | . . . . . Repair Station Hacks 4 | . . 2 2 . Scan Component 2 | . . 1 1 . Repair 2 | . . 1 1 . Recycling Unit Hacks 5 | . 2 1 2 . Retrieve Components 5 | . 2 1 2 . Scanalyzer 16 | . . 8 8 . Insert Component 7 | . . 4 3 . Analyze 9 | . . 4 5 . Garrison Access Hacks . | . . . . . Unauthorized Hacks 32 | . 10 8 12 2 Terminals 24 | . 8 6 9 1 Botnet 24 | . 8 6 9 1 Fabricators . | . . . . . Repair Stations . | . . . . . Recycling Units 6 | . 2 2 2 . Reject 6 | . 2 2 2 . Scanalyzers . | . . . . . Garrison Access 2 | . . . 1 1 Reprogram 2 | . . . 1 1 Data Cores Recovered 2 | . . 1 1 . Used . | . . . . . Hacking Detections 33 | . 9 10 12 2 Full Trace Events 2 | . . 1 1 . Feedback Events . | . . . . . Feedback Blocked . | . . . . . Robot Schematics Acquired . | . . . . . Robots Built . | . . . . . Authchips . | . . . . . Time . | . . . . . Total Robot Build Rating . | . . . . . Part Schematics Acquired 32 | . 15 10 7 . Parts Built . | . . . . . Authchips . | . . . . . Time . | . . . . . Total Part Build Rating . | . . . . . Parts Repaired 2 | . . 1 1 . Time 64 | . . 26 38 . Parts Recycled . | . . . . . Recycled Matter . | . . . . . Retrieved Matter . | . . . . . Retrieved Components 32 | . 10 3 19 . Parts Scanalyzed 7 | . . 4 3 . Part Schematics Acquired 5 | . . 3 2 . Parts Damaged 1 | . . 1 . . Bothacking | -11 -10 -9 -8 -7 ------------ Run | Yrd Mat Mat Mat Fac Used RIF Installer . | . . . . . Robots Hacked . | . . . . . Non-combat . | . . . . . Combat . | . . . . . Robot Hacks Applied . | . . . . . Relay Couplers Released . | . . . . . Fabnet Peak Effective % . | . . . . . Robots Rewired . | . . . . . Allies Hacked . | . . . . . Hacks Repelled . | . . . . . Allies | -11 -10 -9 -8 -7 -------- Run | Yrd Mat Mat Mat Fac Total Allies 1 | . . . 1 . Largest Group 1 | . . . 1 . Highest-Rated Group 27 | . . . 27 . Highest-Rated Ally 27 | . . . 27 . Total Orders . | . . . . . Ally Attacks . | . . . . . Total Damage . | . . . . . Kills . | . . . . . Allies Corrupted . | . . . . . Allies Melted . | . . . . . Intel | -11 -10 -9 -8 -7 ------- Run | Yrd Mat Mat Mat Fac Robot Analysis Total 3 | . . 3 . . Derelict Logs Recovered . | . . . . . Drone Launches . | . . . . . Drone Recoveries . | . . . . . Exploration | -11 -10 -9 -8 -7 ------------- Run | Yrd Mat Mat Mat Fac Turns Passed 5598 | 71 851 2561 1710 405 Spaces Moved 3684 | 53 640 1501 1169 321 Core 14 | 14 . . . . Treads . | . . . . . Legs 3670 | 39 640 1501 1169 321 Wheels . | . . . . . Hover . | . . . . . Flight . | . . . . . Fastest Speed 50 | 50 120 120 112 115 Average Speed 127 | 101 120 145 114 115 Slowest Speed 190 | 120 190 190 120 115 Overloaded Moves . | . . . . . Propulsion Burnouts . | . . . . . Robots Hopped . | . . . . . Cave-ins Triggered . | . . . . . Exploration Rate (%) 61 | 3 98 97 99 11 Regions Visited 4 Branch Regions . Pre-discovered Areas . | . . . . . Known Exits Taken 4 | 1 1 1 1 . Unknown Exits Taken . | . . . . . Scrap Searched . | . . . . . Spaces Dug . | . . . . . Terrain Destroyed 80 | . . 26 23 31 Melee . | . . . . . Projectile . | . . . . . AOE 80 | . . 26 23 31 Terrain Rammed . | . . . . . Walls Destroyed . | . . . . . Machines Disabled . | . . . . . Actions | -11 -10 -9 -8 -7 --------- Run | Yrd Mat Mat Mat Fac Total 4205 | 70 678 1702 1419 336 Wait 237 | . 10 65 162 . Move 3680 | 52 639 1500 1168 321 Hop . | . . . . . Pick Up 32 | 11 3 10 6 2 Fast Attach 8 | . 2 3 3 . Attach 14 | 7 1 3 1 2 Detach . | . . . . . Swap 18 | . . 10 7 1 Drop 29 | . 1 17 11 . Fire 186 | . 22 93 61 10 Melee . | . . . . . Ram . | . . . . . Kick 1 | . . 1 . . Crush . | . . . . . Escape Stasis . | . . . . . Rewire . | . . . . . Trap . | . . . . . Miscellaneous . | . . . . . Route ------- -11/Scrapyard -10/Materials (discovered 5 exits: *Mat x3 / *Min x2) -9/Materials (discovered 5 exits: *Mat x3 / *Min x2) -8/Materials (discovered 4 exits: *Fac x3 / *Sto) -7/Factory History --------- Turn | Location | Event 2 | -11/Scrapyard | Met Revision 17 5 | -11/Scrapyard | Identified exit to Materials 5 | -11/Scrapyard | Discovered exit to Materials (range 16) 72 | -11/Scrapyard | Entered Materials 72 | -10/Materials | Evolved 1 slot: Power x1 308 | -10/Materials | Build established: Hacker-Mutant 322 | -10/Materials | Identified exit to Materials 322 | -10/Materials | Discovered exit to Materials (range 10) 506 | -10/Materials | Identified exit to Mines 506 | -10/Materials | Discovered exit to Mines (range 7) 577 | -10/Materials | Discovered exit to Materials (range 6) 728 | -10/Materials | Discovered exit to Mines (range 16) 901 | -10/Materials | Discovered exit to Materials (range 16) 923 | -10/Materials | Entered another Materials area 923 | -9/Materials | Evolved 2 slots: Utility x2 1225 | -9/Materials | Identified exit to Materials 1225 | -9/Materials | Discovered exit to Materials (range 10) 1529 | -9/Materials | Identified exit to Mines 1529 | -9/Materials | Discovered exit to Mines (range 15) 1947 | -9/Materials | Discovered exit to Mines (range 6) 2684 | -9/Materials | Repaired Aluminum Leg 3484 | -9/Materials | Entered another Materials area 3484 | -8/Materials | Evolved 2 slots: Propulsion x2 3904 | -8/Materials | Identified exit to Factory 3904 | -8/Materials | Discovered exit to Factory (range 16) 4159 | -8/Materials | Identified exit to Storage 4159 | -8/Materials | Discovered exit to Storage (range 15) 4472 | -8/Materials | Discovered exit to Factory (range 14) 5004 | -8/Materials | Repaired EM Pulse Cannon 5171 | -8/Materials | Discovered exit to Factory (range 16) 5194 | -8/Materials | Entered Factory 5194 | -7/Factory | Evolved 2 slots: Utility x2 5482 | -7/Factory | Build established: Hacker-Skirmisher 5599 | -7/Factory | Self-destructed Last Messages --------------- Awaiting botnet instructions. K-01 Serf collects debris. U-05 Engineer lays Concrete. U-05 Engineer builds a Wall. K-01 Serf collects debris. U-05 Engineer lays Concrete. U-05 Engineer builds a Wall. U-05 Engineer lays Concrete. K-01 Serf collects debris. U-05 Engineer lays Concrete. K-01 Serf collects debris. Acquired Imp. EM Pulse Cannon. Acquired Armor Integrity Analyzer. Triggered Ambush Trap. L-41 Fighter emerges from a hatch in the floor. S-27 Virus emerges from a hatch in the floor. G-47 Trooper emerges from a hatch in the floor. S-27 Virus destroyed. Lgt. Deuterium Engine destroyed. U-05 Engineer lays Concrete. Map ----- +----------------------------------------------------+ | + # | | # """ # | | ### # """ # | | ############# # """ # | | ????# ] !# # # | | ????# # # """ # | | ????# # # ] """ # | | ????# """" # # """ # | | ????# """" + # = # | | ????# """" # ########## | | ????# """" # # !# | | ????# """" # # # | | ????# """" # # ! # | | ????# # # # | | ????# """" # % # # | | ????# """" # # # | | ????# """" # =# # | | ????# """" # %# # | | ??### "" " #x *+ # | | ??# # " #x # # | | ### # # # # | | #" ######### #! # | | # # g # | | # # # | | !# # !l # | | ! # # @ # | | =% + # # | | [ # # # | | # ########## | | # # # | | " # # # | | !! T # # # | | !! " # # # | | # # # | | ############# # # | | # # | | ##+########## + # | | # # " " " # | | """ """ !# # " " " # | | """ """ # # " " " # | | """ """ # # " " " # | | ! # # " " " # | | # # " " " # | | # # " " " # | | + # " " " # | | "" "" # # " " " # | | ] ""S"" # # # | | ! """" # ##+##+#### | | # #??? | | #############+##+##########??? | +----------------------------------------------------+ Best States ------------- Heat Dissipation 34 Energy Generation 23 Energy Capacity 430 Matter Stores 300 Matter Capacity 300 Sight Range 20 Robot Scan Range 14 Terrain Scan Range 14 Terrain Scan Density 10 Jamming Range 12 Resistance: KI 35 Resistance: TH 35 Resistance: EX 35 Resistance: EM 35 Resistance: I 35 Resistance: S 35 Resistance: P 35 Evasion (%) 55 Targeting Accuracy 5 Offensive Hacking 40 Item Schematics ----------------- Sensor Array | -10/Materials | Hacked Signal Interpreter | -10/Materials | Hacked EM Pulse Gun | -10/Materials | Hacked Aluminum Leg | -10/Materials | Hacked Assault Rifle | -10/Materials | Hacked Targeting Computer | -10/Materials | Hacked Terrain Scanner | -10/Materials | Hacked Transport Network Coupler | -10/Materials | Hacked Mining Claw | -10/Materials | Hacked Datajack | -10/Materials | Hacked Beam Cannon | -10/Materials | Hacked Grenade Launcher | -10/Materials | Hacked Flight Unit | -10/Materials | Hacked Sml. Battery | -10/Materials | Hacked Med. Battery | -10/Materials | Hacked Med. Laser | -9/Materials | Scanalyzed Lgt. Armor Plating | -9/Materials | Scanalyzed Autogun | -9/Materials | Hacked Rnf. Ion Engine | -9/Materials | Hacked Shotgun | -9/Materials | Hacked Salvage Targeting Computer | -9/Materials | Hacked Arm. Wheel | -9/Materials | Hacked Terrain Scan Processor | -9/Materials | Hacked Utility Shielding | -9/Materials | Hacked Hvy. Assault Rifle | -9/Materials | Scanalyzed Machine Analyzer | -8/Materials | Hacked Missile Launcher | -8/Materials | Hacked Reactive Plating | -8/Materials | Hacked Rocket Launcher | -8/Materials | Hacked Gravmag System | -8/Materials | Hacked Hacking Suite | -8/Materials | Scanalyzed Transmission Jammer | -8/Materials | Scanalyzed Robot Schematics ------------------ None Fabricated ------------ Nothing Alien Tech Used ----------------- None Achievements -------------- None Challenges ------------ None Game ------ Seed DrainedBraceBay Manual? 0 Play Time 00:58:46 Cumulative 29.9 hours Start 2024.08.23 @ 15:55:07 End 2024.08.26 @ 12:01:19 Sessions 3 Manual Loads 0 Difficulty Explorer Special Mode None Game No. 44 Rogue 1 Adventurer 3 Explorer 40 Win Type - Total 0 Types 0/0/0/0/0/0/0/0/0 Lore% 8 Gallery% 17 Achievement% 21 Wizard Run 0 Options --------- Layout 1 ASCII 0 Keyboard 0 Movement Mouse Keybinds 0 Fullscreen 1 Font 32/SmallcapsGlow Map View 50x35 Zoom Use 0% Tactical HUD 0 Map Filters NONE Filters NONE Steam 1 RUN: d38b59d5-1b2b-4bd3-b2ef-b739a77530d1